fUSD/lending_fUSD_20260112
["ID","MTS","AMOUNT","RATE_DAILY","PERIOD"]
[401456363,1768235463479,-150.0,0.000162,2]
[401456364,1768235463489,-22.8916,0.000162,2]
[401456365,1768235463502,-127.1084,0.000162,2]
[401456366,1768235463512,-150.0,0.000162,2]
[401456367,1768235463521,-150.0,0.000164,2]
[401456368,1768235463531,-150.0,0.000166,2]
[401456369,1768235463541,-150.0,0.000168,2]
[401456370,1768235463551,-150.0,0.00017,2]
[401456371,1768235463560,-179.140151,0.00017098,2]
[401456372,1768235463569,-190.188843,0.00017098,2]
[401456373,1768235463579,-179.140151,0.00017098,2]
[401456374,1768235463588,-190.188843,0.00017098,2]
[401456375,1768235463600,-179.140151,0.00017098,2]
[401456376,1768235463610,-151.0,0.00017098,2]
[401456377,1768235463619,-209.35171076,0.00017138,2]
[401456378,1768235463629,-151.0,0.00017142,2]
[401456379,1768235463638,-150.0,0.000172,2]
[401456380,1768235463647,-150.0,0.000174,2]
[401456381,1768235463656,-150.0,0.000176,2]
[401456382,1768235463665,-150.0,0.000178,2]
[401456383,1768235463676,-2835.36155,0.0001782,2]
[401456384,1768235463687,-179.140151,0.0001782,2]
[401456385,1768235463696,-190.188843,0.0001782,2]
[401456386,1768235463706,-179.140151,0.0001782,2]
[401456387,1768235463716,-190.188843,0.0001782,2]
[401456388,1768235463728,-179.140151,0.0001782,2]
[401456389,1768235463738,-151.0,0.0001782,2]
[401456390,1768235463748,-2835.36155,0.000179,2]
[401456391,1768235463758,-179.140151,0.000179,2]
[401456392,1768235463767,-407.36190832,0.000179,2]
[401456393,1768235463777,-190.188843,0.000179,2]
[401456394,1768235463787,-179.140151,0.000179,2]
[401456395,1768235463797,-190.188843,0.000179,2]
[401456396,1768235463807,-179.140151,0.000179,2]
[401456397,1768235463818,-614.653,0.0001791,2]
[401456398,1768235463827,-150.0,0.00018,2]
[401456399,1768235463838,-150.0,0.00018,2]
[401456400,1768235463847,-150.0,0.00018,2]
[401456401,1768235463857,-250224.81218658,0.00018,2]
[401456402,1768235463868,-3065.82931984,0.00018,2]
[401456403,1768235463879,-888.0,0.00018,2]
[401456404,1768235463890,-259.19169647,0.00018,2]
[401456405,1768235463901,-2493.1,0.00018,2]
[401456406,1768235463912,-649.83334176,0.00018,2]
[401456407,1768235463940,-150.0,0.00016457,2]
[401456408,1768235463950,-4860.04775598,0.00018,2]
[401456409,1768235463975,-150.0,0.00016714,2]
[401456410,1768235463985,-150.0,0.00016971,2]
[401456411,1768235463994,-16538.5539357,0.00018,2]
[401456412,1768235464007,-1120.92185115,0.00018,2]
[401456413,1768235464019,-638.91056703,0.00018,2]
[401456414,1768235464030,-2954.93571423,0.00018,2]
[401456415,1768235464046,-150.0,0.00017229,2]
[401456416,1768235464055,-3345.83514778,0.00018,2]
[401456417,1768235464067,-28786.77548776,0.00018,2]
[401456418,1768235464077,-58712.74409333,0.00018,2]
[401456419,1768235464089,-57063.06728886,0.00018,2]
[401456420,1768235464153,-151.0,0.00017148,2]
[401456421,1768235464162,-150.0,0.00017486,2]
[401456422,1768235464173,-150.0,0.00017743,2]
[401456423,1768235464182,-151.0,0.000179,2]
[401456424,1768235464192,-150.0,0.00018,2]
[401456425,1768235464202,-550806.00000066,0.00018,2]
[401456426,1768235464213,-403.92,0.00018,2]
[401456427,1768235464225,-16234.91306725,0.00018,2]
[401456428,1768235464236,-490.0,0.00018,2]
[401456429,1768235464249,-43465.0,0.00018,2]
[401456430,1768235464261,-5758.36176899,0.00018,2]
[401456431,1768235464272,-6019.73832867,0.00018,2]
[401456432,1768235464284,-713.13,0.00018,2]
[401456433,1768235768256,4002.505237,7.945e-05,2]
[401456443,1768236422199,965.405,0.000202,30]
[401456464,1768236632577,-1077.12332908,0.00015,2]
[401456466,1768236632589,-16.46198404,0.00015,2]
[401456468,1768236632599,-1000.0,0.00015043,2]
[401456470,1768236632609,-275.0,0.00015043,2]
[401456472,1768236632619,-349.13455051,0.00015132,2]
[401456474,1768236632630,-580.36061433,0.00015132,2]
[401456476,1768236632642,-70.50483516,0.00015132,2]
[401456478,1768236632653,-200.0,0.00015418,2]
[401456480,1768236632663,-500.0,0.00015434,2]
[401456483,1768236632674,-374.45875249,0.000158,3]
[401456487,1768236632712,-5159.54124751,0.000158,3]
[401456489,1768236632723,-500.0,0.00015862,2]
[401456491,1768236632733,-506.61,0.00015868,2]
[401456493,1768236632742,-1000.0,0.00015942,2]
[401456495,1768236632752,-1200.0,0.00015999,2]
[401456497,1768236632762,-151.0,0.00016061,2]
[401456499,1768236632771,-151.0,0.00016061,2]
[401456501,1768236632781,-3240.0,0.00016064,2]
[401456503,1768236632791,-745.9,0.00016198,2]
[401456505,1768236632801,-500.0,0.00016198,2]
[401456507,1768236632810,-500.0,0.00016198,2]
[401456509,1768236632819,-500.0,0.00016198,2]
[401456511,1768236632828,-500.0,0.00016198,2]
[401456513,1768236632837,-500.0,0.00016198,2]
[401456515,1768236632846,-500.0,0.00016198,2]
[401456517,1768236632856,-500.0,0.00016198,2]
[401456519,1768236632866,-500.0,0.00016198,2]
[401456521,1768236632875,-500.0,0.00016198,2]
[401456523,1768236632884,-500.0,0.00016198,2]
[401456525,1768236632895,-500.0,0.00016198,2]
[401456527,1768236632904,-500.0,0.00016198,2]
[401456529,1768236632913,-500.0,0.00016198,2]
[401456531,1768236632923,-500.0,0.00016198,2]
[401456533,1768236632932,-592.44136658,0.00016198,2]
[401456535,1768236632941,-500.0,0.00016198,2]
[401456537,1768236632950,-500.0,0.00016198,2]
[401456539,1768236632960,-500.0,0.00016198,2]
[401456541,1768236632969,-500.0,0.00016198,2]
[401456543,1768236632979,-500.0,0.00016198,2]
[401456545,1768236632992,-500.0,0.00016198,2]
[401456547,1768236633001,-500.0,0.00016198,2]
[401456549,1768236633010,-500.0,0.00016198,2]
[401456551,1768236633019,-265.82681851,0.00016198,2]
[401456553,1768236633028,-500.0,0.00016198,2]
[401456555,1768236633038,-500.0,0.00016198,2]
[401456557,1768236633048,-500.0,0.00016198,2]
[401456559,1768236633059,-500.0,0.00016198,2]
[401456561,1768236633069,-500.0,0.00016198,2]
[401456563,1768236633079,-500.0,0.00016198,2]
[401456565,1768236633089,-500.0,0.00016198,2]
[401456567,1768236633098,-500.0,0.00016198,2]
[401456569,1768236633109,-500.0,0.00016198,2]
[401456571,1768236633120,-500.0,0.00016198,2]
[401456573,1768236633129,-500.0,0.00016198,2]
[401456575,1768236633138,-500.0,0.00016198,2]
[401456577,1768236633148,-500.0,0.00016198,2]
[401456579,1768236633157,-500.0,0.00016198,2]
[401456581,1768236633166,-500.0,0.00016198,2]
[401456583,1768236633175,-500.0,0.00016198,2]
[401456585,1768236633184,-500.0,0.00016198,2]
[401456586,1768236633194,-500.0,0.00016198,2]
[401456588,1768236633203,-500.0,0.00016198,2]
[401456590,1768236633213,-500.0,0.00016198,2]
[401456592,1768236633223,-500.0,0.00016198,2]
[401456594,1768236633232,-500.0,0.00016198,2]
[401456596,1768236633241,-500.0,0.00016198,2]
[401456598,1768236633250,-500.0,0.00016198,2]
[401456600,1768236633259,-1000.0,0.00016199,2]
[401456602,1768236633269,-150.0,0.000162,2]
[401456604,1768236633278,-150.0,0.000162,2]
[401456607,1768236633288,-150.0,0.000162,2]
[401456608,1768236633297,-150.0,0.000162,2]
[401456610,1768236633306,-150.0,0.000162,2]
[401456612,1768236633316,-150.0,0.000162,2]
[401456614,1768236633326,-150.0,0.000162,2]
[401456616,1768236633335,-150.0,0.000162,2]
[401456618,1768236633344,-150.0,0.000162,2]
[401456620,1768236633353,-150.0,0.000162,2]
[401456622,1768236633362,-166.66,0.00016237,2]
[401456624,1768236633371,-150.0,0.00016282,2]
[401456626,1768236633380,-5534.0,0.000163,5]
[401456628,1768236633389,-150.0,0.00016306,2]
[401456630,1768236633398,-150.0,0.0001632,2]
[401456632,1768236633408,-150.0,0.00016364,2]
[401456634,1768236633417,-150.0,0.00016364,2]
[401456636,1768236633431,-150.0,0.00016412,2]
[401456638,1768236633441,-150.0,0.00016425,2]
[401456640,1768236633450,-150.0,0.0001644,2]
[401456642,1768236633459,-150.0,0.00016445,2]
[401456644,1768236633469,-745.9,0.00016472,2]
[401456646,1768236633478,-150.0,0.000165,2]
[401456648,1768236633487,-189.07923266,0.000165,2]
[401456650,1768236633497,-2970.39913007,0.00016509,2]
[401456652,1768236633506,-7574.68119231,0.00016509,2]
[401456654,1768236633516,-150.0,0.00016518,2]
[401456656,1768236633526,-150.0,0.00016527,2]
[401456658,1768236633535,-150.0,0.00016527,2]
[401456660,1768236633544,-151.0,0.00016528,2]
[401456662,1768236633554,-550.02138729,0.00016547,2]
[401456664,1768236633563,-150.0,0.0001656,2]
[401456666,1768236633572,-150.0,0.0001656,2]
[401456668,1768236633581,-151.0,0.00016577,2]
[401456670,1768236633591,-166.66,0.00016579,2]
[401456672,1768236633601,-434.06843016,0.00016579,2]
[401456674,1768236633611,-2361.131,0.00016579,2]
[401456676,1768236633620,-167.44,0.00016579,2]
[401456678,1768236633631,-500.0,0.00016579,2]
[401456680,1768236633641,-500.0,0.00016579,2]
[401456681,1768236633651,-150.0,0.00016579,2]
[401456682,1768236633662,-108087.78546077,0.0001658,2]
[401456683,1768236633674,-756.71092669,0.0001658,2]
[401456684,1768236633685,-4806.29998,0.0001658,2]
[401456685,1768236633696,-258.20010086,0.0001658,2]
[401456686,1768236633707,-339.75260614,0.0001658,2]
[401456687,1768236633719,-1468.67056078,0.0001658,2]
[401456688,1768236633733,-311.245,0.0001658,2]
[401456689,1768236633744,-1817.86899806,0.0001658,2]
[401456690,1768236633755,-867.29465335,0.0001658,2]
[401456691,1768236633766,-473.32,0.0001658,2]
[401456692,1768236633777,-598.6552195,0.0001658,2]
[401456695,1768236633795,-2073.29589676,0.0001658,2]
[401456699,1768236633823,-974.17884844,0.0001658,2]
[401456713,1768236638206,-1931.45747354,0.0001658,2]
[401456714,1768236638218,-875235.26427511,0.0001658,2]
[401456715,1768236638228,-150.0,0.00016609,2]
[401456716,1768236638237,-150.0,0.00016624,2]
[401456717,1768236638248,-1000.0,0.00016648,2]
[401456718,1768236638258,-150.0,0.0001665,2]
[401456719,1768236638268,-2970.39913005,0.00016664,2]
[401456720,1768236638278,-7574.68119231,0.00016664,2]
[401456721,1768236638288,-150.0,0.0001668,2]
[401456722,1768236638297,-1596.09,0.00016681,2]
[401456723,1768236638307,-259.54,0.00016685,2]
[401456724,1768236638316,-150.0,0.00016691,2]
[401456725,1768236638326,-150.0,0.00016691,2]
[401456726,1768236638336,-150.0,0.00016729,2]
[401456727,1768236638346,-745.9,0.00016746,2]
[401456728,1768236638356,-150.0,0.00016773,2]
[401456729,1768236638365,-150.0,0.000168,2]
[401456730,1768236638375,-150.0,0.000168,2]
[401456731,1768236638384,-2970.39913005,0.00016818,2]
[401456732,1768236638394,-7574.68119231,0.00016818,2]
[401456733,1768236638403,-150.0,0.00016835,2]
[401456734,1768236638413,-150.0,0.00016855,2]
[401456735,1768236638423,-150.0,0.00016855,2]
[401456736,1768236638432,-150.0,0.00016875,2]
[401456737,1768236638442,-150.0,0.0001692,2]
[401456738,1768236638454,-150.0,0.0001692,2]
[401456739,1768236638463,-166.66,0.0001692,2]
[401456740,1768236638472,-150.0,0.00016936,2]
[401456742,1768236638482,-150.0,0.00016941,2]
[401456744,1768236638491,-2970.39913005,0.00016973,2]
[401456746,1768236638500,-7574.68119231,0.00016973,2]
[401456748,1768236638510,-776.50436,0.00017,2]
[401456750,1768236638519,-2036.0,0.00017,2]
[401456752,1768236638528,-1000.0,0.00017,2]
[401456754,1768236638539,-2319.0,0.00017,2]
[401456755,1768236638547,-1000.0,0.00017,2]
[401456757,1768236638557,-322.6107,0.00017014,2]
[401456759,1768236638567,-500.0,0.00017014,2]
[401456760,1768236638577,-500.0,0.00017014,2]
[401456761,1768236638587,-500.0,0.00017014,2]
[401456762,1768236638597,-324.05202516,0.00017014,2]
[401456763,1768236638607,-500.0,0.00017014,2]
[401456765,1768236638617,-500.0,0.00017014,2]
[401456766,1768236638626,-500.0,0.00017014,2]
[401456767,1768236638636,-500.0,0.00017014,2]
[401456768,1768236638646,-500.0,0.00017014,2]
[401456769,1768236638656,-500.0,0.00017014,2]
[401456770,1768236638665,-500.0,0.00017014,2]
[401456771,1768236638675,-500.0,0.00017014,2]
[401456772,1768236638685,-500.0,0.00017014,2]
[401456773,1768236638694,-500.0,0.00017014,2]
[401456774,1768236638704,-620.0,0.00017014,2]
[401456775,1768236638713,-533.88981491,0.00017014,2]
[401456776,1768236638722,-150.0,0.00017018,2]
[401456777,1768236638732,-150.0,0.00017018,2]
[401456778,1768236638741,-745.9,0.0001702,2]
[401456779,1768236638751,-1000.0,0.00017021,2]
[401456780,1768236638761,-150.0,0.0001704,2]
[401456781,1768236638771,-150.0,0.00017047,2]
[401456782,1768236638781,-213.20330559,0.00017073,2]
[401456783,1768236638792,-500.0,0.00017073,2]
[401456784,1768236638802,-500.0,0.00017073,2]
[401456785,1768236638811,-500.0,0.00017073,2]
[401456786,1768236638821,-500.0,0.00017073,2]
[401456787,1768236638831,-201.20066245,0.00017073,2]
[401456788,1768236638841,-500.0,0.00017073,2]
[401456789,1768236638850,-500.0,0.00017073,2]
[401456790,1768236638860,-166.66,0.00017092,2]
[401456791,1768236638870,-150.0,0.000171,2]
[401456792,1768236638879,-150.0,0.000171,2]
[401456793,1768236638889,-150.0,0.000171,2]
[401456794,1768236638899,-831.908,0.000171,2]
[401456795,1768236638909,-569.96,0.000171,2]
[401456796,1768236638919,-1000.0,0.000171,2]
[401456797,1768236638928,-1000.0,0.000171,2]
[401456798,1768236638937,-1000.0,0.000171,2]
[401456799,1768236638947,-2970.39913005,0.00017127,2]
[401456800,1768236638956,-7574.68119231,0.00017127,2]
[401456801,1768236638966,-500.0,0.00017129,2]
[401456802,1768236638976,-150.0,0.00017153,2]
[401456803,1768236638988,-500.0,0.00017153,2]
[401456804,1768236638998,-150.0,0.0001716,2]
[401456805,1768236639008,-200.0,0.00017174,2]
[401456806,1768236639017,-1702.2,0.00017178,2]
[401456807,1768236639027,-150.0,0.00017182,2]
[401456808,1768236639037,-150.0,0.00017182,2]
[401456809,1768236639047,-1000.0,0.00017185,2]
[401456810,1768236639060,-150.0,0.00017259,2]
[401456811,1768236639070,-166.66,0.00017262,2]
[401456812,1768236639080,-150.0,0.00017264,2]
[401456813,1768236639092,-150.0,0.0001728,2]
[401456814,1768236639101,-150.0,0.0001728,2]
[401456815,1768236639111,-2970.39913005,0.00017282,2]
[401456816,1768236639122,-7574.68119231,0.00017282,2]
[401456817,1768236639131,-745.9,0.00017294,2]
[401456818,1768236639141,-150.0,0.00017325,2]
[401456819,1768236639151,-150.0,0.00017345,2]
[401456820,1768236639161,-150.0,0.00017345,2]
[401456821,1768236639171,-1000.0,0.00017358,2]
[401456822,1768236639180,-150.0,0.00017365,2]
[401456823,1768236639189,-150.0,0.000174,2]
[401456824,1768236639200,-150.0,0.000174,2]
[401456825,1768236639209,-1000.0,0.00017405,2]
[401456826,1768236639218,-921.0,0.00017406,2]
[401456827,1768236639228,-150.0,0.00017427,2]
[401456828,1768236639237,-2970.39913005,0.00017436,2]
[401456829,1768236639248,-7574.68119231,0.00017436,2]
[401456830,1768236639261,-288.41215138,0.00017451,2]
[401456831,1768236639270,-150.0,0.00017471,2]
[401456832,1768236639279,-4161.0,0.00017482,2]
[401456833,1768236639290,-150.0,0.00017509,2]
[401456834,1768236639299,-150.0,0.00017509,2]
[401456835,1768236639308,-150.0,0.0001752,2]
[401456836,1768236639319,-150.0,0.0001755,2]
[401456837,1768236639329,-553.64373807,0.00017562,2]
[401456838,1768236639338,-745.91043586,0.00017568,2]
[401456839,1768236639347,-150.0,0.00017576,2]
[401456840,1768236639357,-1680.0,0.0001758,2]
[401456841,1768236639367,-2970.39913005,0.00017591,2]
[401456842,1768236639377,-7574.68119231,0.00017591,2]
[401456843,1768236639386,-150.0,0.00017591,2]
[401456844,1768236639395,-158.96562276,0.00017593,2]
[401456845,1768236639405,-1000.0,0.000176,2]
[401456846,1768236639414,-10012.0,0.000176,2]
[401456847,1768236639424,-166.66,0.00017604,2]
[401456848,1768236639433,-1000.0,0.00017621,2]
[401456849,1768236639443,-500.0,0.00017621,2]
[401456850,1768236639454,-249.39394419,0.00017621,2]
[401456851,1768236639465,-501.478272,0.00017621,2]
[401456852,1768236639475,-1000.0,0.00017621,2]
[401456853,1768236639485,-1000.0,0.00017621,2]
[401456854,1768236639495,-921.0,0.0001763,2]
[401456855,1768236639505,-921.0,0.00017637,2]
[401456856,1768236639514,-150.0,0.0001764,2]
[401456857,1768236639525,-150.0,0.0001764,2]
[401456858,1768236639534,-7217.71732448,0.0001764,2]
[401456859,1768236639544,-166.66,0.00017656,2]
[401456860,1768236639554,-150.0,0.00017673,2]
[401456861,1768236639563,-150.0,0.00017673,2]
[401456862,1768236639572,-150.0,0.00017682,2]
[401456863,1768236639581,-559.0,0.00017699,2]
[401456864,1768236639591,-150.0,0.00017699,2]
[401456865,1768236639600,-500.0,0.00017699,2]
[401456866,1768236639610,-500.0,0.00017699,2]
[401456867,1768236639619,-500.0,0.00017699,2]
[401456868,1768236639629,-150.0,0.000177,2]
[401456869,1768236639638,-2970.39913005,0.00017745,2]
[401456870,1768236639648,-7574.68119231,0.00017745,2]
[401456871,1768236639658,-559.0,0.00017754,2]
[401456872,1768236639667,-152.62137386,0.00017754,2]
[401456873,1768236639677,-500.0,0.00017754,2]
[401456874,1768236639686,-500.0,0.00017754,2]
[401456875,1768236639696,-500.0,0.00017754,2]
[401456876,1768236639706,-150.0,0.00017755,2]
[401456877,1768236639716,-150.0,0.0001776,2]
[401456878,1768236639725,-171.16,0.00017761,2]
[401456879,1768236639735,-921.0,0.00017767,2]
[401456880,1768236639744,-150.0,0.00017775,2]
[401456881,1768236639754,-150.0,0.00017788,2]
[401456882,1768236639763,-1000.0,0.000178,2]
[401456883,1768236639773,-500.0,0.00017808,2]
[401456884,1768236639782,-220.00667831,0.00017808,2]
[401456885,1768236639792,-559.0,0.00017809,2]
[401456886,1768236639802,-500.0,0.00017809,2]
[401456887,1768236639811,-500.0,0.00017809,2]
[401456888,1768236639821,-316.59937829,0.00017809,2]
[401456889,1768236639831,-5365.71153,0.0001782,2]
[401456890,1768236639841,-5365.71153,0.0001782,2]
[401456891,1768236639851,-1069.60379365,0.0001782,2]
[401456892,1768236639860,-25000.0,0.0001783,3]
[401456893,1768236639870,-5365.71153,0.0001783,2]
[401456894,1768236639880,-150.0,0.00017836,2]
[401456895,1768236639889,-150.0,0.00017836,2]
[401456896,1768236639898,-25000.0,0.00017838,3]
[401456897,1768236639907,-17835.71810689,0.00017847,3]
[401456898,1768236639921,-3419.43099117,0.00017847,3]
[401456899,1768236639946,-2437.99103874,0.00017847,3]
[401456900,1768236639966,-1306.8598632,0.00017847,3]
[401456901,1768236639980,-506.61,0.00017851,2]
[401456902,1768236639994,-74.5301268,0.00017855,2]
[401456903,1768236640007,-125.4698732,0.00017855,2]
[401456904,1768236640016,-2806.82734046,0.00017856,3]
[401456905,1768236640029,-11598.61276402,0.00017856,3]
[401456906,1768236640040,-10594.55989552,0.00017856,3]
[401456907,1768236640051,-200.0,0.00017856,2]
[401456909,1768236640062,-200.0,0.00017856,2]
[401456910,1768236640074,-5365.71154,0.0001786,2]
[401456911,1768236640083,-500.0,0.00017863,2]
[401456912,1768236640094,-559.0,0.00017863,2]
[401456913,1768236640104,-500.0,0.00017863,2]
[401456914,1768236640114,-474.72856447,0.00017863,2]
[401456915,1768236640126,-25.27143553,0.00017863,2]
[401456916,1768236640136,-25000.0,0.00017865,3]
[401456917,1768236640146,-1100.6041426,0.0001787,2]
[401456918,1768236640155,-25000.0,0.00017874,3]
[401456920,1768236640165,-1000.0,0.00017876,2]
[401456922,1768236640175,-662.59712771,0.00017877,2]
[401456924,1768236640184,-1077.85182102,0.00017877,2]
[401456926,1768236640195,-1522.24846126,0.00017877,2]
[401456928,1768236640205,-1969.7535,0.00017877,2]
[401456930,1768236640215,-150.0,0.0001788,2]
[401456932,1768236640225,-5365.71153,0.0001788,2]
[401456934,1768236640235,-18108.71953653,0.00017882,3]
[401456937,1768236640248,-735.20070432,0.00017882,3]
[401456939,1768236640260,-633.24668798,0.00017882,3]
[401456942,1768236640272,-529.18058693,0.00017882,3]
[401456943,1768236640285,-3347.64438552,0.00017882,3]
[401456944,1768236640296,-1646.00809872,0.00017882,3]
[401456945,1768236640307,-25000.0,0.00017891,3]
[401456946,1768236640318,-150.0,0.00017894,2]
[401456947,1768236640328,-151.0,0.00017897,2]
[401456948,1768236640337,-156.587,0.00017897,2]
[401456949,1768236640349,-1000.0,0.000179,2]
[401456950,1768236640360,-5637.93326066,0.000179,2]
[401456951,1768236640507,-6267.46257565,0.000179,2]
[401456960,1768236645755,-14442.36246369,0.000179,2]
[401456961,1768236645765,-7489.0,0.000179,2]
[401456962,1768236645775,-10000.0,0.000179,2]
[401456963,1768236645785,-25000.0,0.000179,3]
[401456964,1768236645794,-1000.0,0.000179,2]
[401456965,1768236645804,-2384.14424915,0.000179,2]
[401456966,1768236645815,-2384.14424915,0.000179,2]
[401456967,1768236645825,-2384.14424915,0.000179,2]
[401456968,1768236645834,-2384.14424915,0.000179,2]
[401456969,1768236645844,-2384.14424915,0.000179,2]
[401456970,1768236645854,-2384.14424915,0.000179,2]
[401456971,1768236645863,-2384.14424915,0.000179,2]
[401456972,1768236645872,-2384.14424915,0.000179,2]
[401456973,1768236645882,-2384.14424915,0.000179,2]
[401456975,1768236645892,-2384.14424915,0.000179,2]
[401456977,1768236645901,-2384.14424915,0.000179,2]
[401456979,1768236645910,-2384.14424915,0.000179,2]
[401456980,1768236645919,-2384.14424915,0.000179,2]
[401456982,1768236645929,-2384.14424915,0.000179,2]
[401456983,1768236645938,-2384.14424915,0.000179,2]
[401456984,1768236645948,-2384.14424915,0.000179,2]
[401456985,1768236645958,-2384.14424915,0.000179,2]
[401456986,1768236645968,-2970.39913005,0.000179,2]
[401456988,1768236645978,-5800.0,0.000179,2]
[401456989,1768236645987,-1541.76737434,0.000179,2]
[401456991,1768236646002,-10063.54651853,0.000179,2]
[401456993,1768236646015,-7754.00502242,0.000179,3]
[401456994,1768236646339,-595.56076077,0.000179,3]
[401456995,1768236646396,-1057.86946926,0.000179,3]
[401456996,1768236646449,-418.680849,0.000179,3]
[401456999,1768237535262,-1000.0,0.00015398,2]
[401457000,1768237535284,-600.0,0.00015508,2]
[401457001,1768237535304,-250.0,0.00015618,2]
[401457002,1768237535327,-2500.0,0.00015618,2]
[401457003,1768237535348,-600.0,0.00015702,2]
[401457004,1768237535367,-589.12916458,0.00015702,2]
[401457005,1768237637121,-31.90762313,0.00015702,2]
[401457006,1768237637143,-1000.0,0.00015781,2]
[401457007,1768237637165,-300.0,0.00015787,2]
[401457008,1768237637195,-2500.0,0.00015788,2]
[401457009,1768237637219,-2500.0,0.00015788,2]
[401457010,1768237637241,-2500.0,0.00015788,2]
[401457011,1768237637266,-1000.0,0.00015837,2]
[401457012,1768237637287,-282.0,0.00015837,2]
[401457013,1768237637308,-263.14,0.00015837,2]
[401457014,1768237637330,-1000.0,0.00015868,2]
[401457015,1768237637352,-1000.0,0.00015904,2]
[401457016,1768237637373,-195.0,0.00015931,2]
[401457017,1768237637395,-1200.0,0.00016015,2]
[401457018,1768237637417,-151.0,0.00016016,2]
[401457019,1768237637439,-151.0,0.00016016,2]
[401457020,1768237637460,-195.0,0.00016016,2]
[401457021,1768237637483,-151.0,0.00016018,2]
[401457022,1768237637510,-151.0,0.00016018,2]
[401457023,1768237637535,-500.0,0.00016023,2]
[401457024,1768237637560,-500.0,0.00016023,2]
[401457025,1768237637583,-500.0,0.00016023,2]
[401457026,1768237637608,-500.0,0.00016023,2]
[401457027,1768237637632,-385.82681851,0.00016023,2]
[401457028,1768237637654,-2435.39498015,0.00016032,2]
[401457029,1768237637674,-152.06497503,0.00016032,2]
[401457030,1768237637696,-1000.0,0.00016048,2]
[401457031,1768237637719,-550.0,0.00016065,2]
[401457032,1768237637740,-1852.42,0.00016068,2]
[401457033,1768237637762,-151.0,0.00016088,2]
[401457034,1768237637783,-166.77964225,0.00016088,2]
[401457035,1768237637804,-151.0,0.00016095,2]
[401457036,1768237637825,-151.0,0.00016095,2]
[401457037,1768237637847,-500.0,0.00016097,2]
[401457038,1768237637867,-500.0,0.00016097,2]
[401457039,1768237637888,-1888.905,0.00016097,2]
[401457040,1768237637910,-167.44,0.00016097,2]
[401457041,1768237637936,-303.84790111,0.00016097,2]
[401457042,1768237637959,-252283.06671497,0.00016098,2]
[401457049,1768237831841,-999.0,0.00015573,3]
[401457050,1768237831851,-267.17934612,0.00015841,2]
[401457051,1768237831861,-400.0,0.000159,5]
[401457052,1768237831871,-457.14060027,0.00015923,2]
[401457053,1768237831881,-151.0,0.00015995,2]
[401457054,1768237831891,-151.0,0.00015995,2]
[401457055,1768237831901,-300.0,0.00015997,2]
[401457056,1768237831911,-150.0,0.00015997,2]
[401457057,1768237831922,-1200.0,0.00015997,2]
[401457058,1768237831935,-167103.80735744,0.00015998,2]
[401457059,1768237831982,-1493.83764128,0.00015998,2]
[401457064,1768237837427,-212.69353078,0.00015997,2]
[401457065,1768237837438,-265.09186872,0.00015997,2]
[401457066,1768237837448,-162.61207678,0.00015998,2]
[401457067,1768237837461,-837.57754225,0.00015998,2]
[401457068,1768237837481,-25840.92838618,0.00015998,2]
[401457069,1768237837537,-5153.50873236,0.00015998,2]